[Event "Niedersachsen-ch Meister 2024"]
[Site "Verden Aller"]
[Date "2024.01.05"]
[Round "3.6"]
[White "Reimer, Philip"]
[Black "Voege, Tobias"]
[Result "0-1"]
[ECO "C13"]
[WhiteElo "2152"]
[BlackElo "2283"]
[Annotator "RC"]
[PlyCount "108"]
[EventDate "2024.01.01"]
[EventType "swiss"]
[EventCountry "GER"]
[SourceTitle "playchess.com"]
[Source "ChessBase"]
[SourceQuality "1"]
[TimeControl "40/5400+30:1800+30"]

1. e4 {[%emt 0:00:03]} e6 {[%emt 0:00:07]} 2. d4 {[%emt 0:00:05]} d5 {[%emt 0:00:03]} 3. Nc3 {[%emt 0:00:07]} Nf6 {[%emt 0:00:07]} 4. Bg5 {[%emt 0:00:07]} dxe4 {[%emt 0:00:05]} 5. Nxe4 {[%emt 0:00:04]} Be7 {[%emt 0:00:03]} 6. Bxf6 {[%emt 0:00:23]} gxf6 {[%emt 0:00:06]} 7. Nf3 {[%emt 0:03:41]} f5 {[%emt 0:00:10]} 8. Nc3 {[%emt 0:00:46]} a6 {[%emt 0:00:31]} 9. g3 {[%emt 0:05:40]} b5 {[%emt 0:01:55]} 10. Bg2 {[%emt 0:17:22]} Bb7 {[%emt 0:00:12]} 11. O-O {[%emt 0:19:23]} c5 {[%emt 0:06:02]} 12. dxc5 {[%emt 0:06:13]} Qxd1 {[%emt 0:04:19]} 13. Rfxd1 {[%emt 0:00:14]} Bxc5 {[%emt 0:01:16]} 14. Ne5 {[%emt 0:00:11]} Bxg2 {[%emt 0:06:58]} 15. Kxg2 {[%emt 0:00:08]} Ke7 {[%emt 0:00:55]} 16. a4 {[%emt 0:06:52]} b4 {[%emt 0:03:50]} 17. Ne2 {[%emt 0:00:52]} Rc8 {[%emt 0:04:41]} 18. b3 {[%emt 0:12:47]} Ra7 {[%emt 0:07:02]} 19. Nc4 {[%emt 0:06:46]} Rd7 {[%emt 0:03:19]} 20. Nf4 {[%emt 0:01:26]} Bd4 {[%emt 0:06:12]} 21. Ra2 {[%emt 0:02:48]} Rcd8 {[%emt 0:07:59]} 22. Nd3 {[%emt 0:05:27]} Nc6 {[%emt 0:45:38]} 23. a5 {[%emt 0:01:35]} Rd5 {[%emt 0:00:00]} 24. f4 {[%emt 0:03:17]} Rb5 {[%emt 0:00:00]} 25. Ra4 {[%emt 0:02:27]} Bc3 {[%emt 0:00:00]} 26. Rf1 {[%emt 0:00:13]} Nd4 {[%emt 0:00:00]} 27. Rc1 {[%emt 0:03:33]} Nxb3 {[%emt 0:00:00]} 28. cxb3 {[%emt 0:00:19]} Rxd3 {[%emt 0:00:00]} 29. Rb1 {[%emt 0:01:36]} Rbd5 {[%emt 0:00:00]} 30. Kf1 {[%emt 0:00:26]} Rd1+ {[%emt 0:00:00]} 31. Rxd1 {[%emt 0:00:08]} Rxd1+ {[%emt 0:00:00]} 32. Ke2 {[%emt 0:00:21]} Rh1 {[%emt 0:00:00]} 33. Ne5 {[%emt 0:00:17]} Rxh2+ {[%emt 0:00:00]} 34. Kd3 {[%emt 0:00:12]} Kd6 {[%emt 0:00:00]} 35. Kc4 {[%emt 0:00:47]} Re2 {[%emt 0:00:00]} 36. Nxf7+ {[%emt 0:00:31]} Kc6 {[%emt 0:00:00]} 37. Nd8+ {[%emt 0:01:02]} Kc7 {[%emt 0:00:27]} 38. Nf7 {[%emt 0:00:10]} Rd2 {[%emt 0:02:45]} 39. Ng5 {[%emt 0:00:51]} Kc6 {[%emt 0:01:43]} 40. Nf3 {[%emt 0:00:35]} Rg2 {[%emt 0:01:11]} 41. Ng5 {[%emt 0:02:59]} h6 {[%emt 0:02:56]} 42. Nxe6 {[%emt 0:00:44]} Rd2 {[%emt 0:00:23]} 43. Rxb4 {[%emt 0:01:02]} Bxb4 {[%emt 0:00:10]} 44. Kxb4 {[%emt 0:00:06]} Rd6 {[%emt 0:02:46]} 45. Ng7 {[%emt 0:01:17]} Rd5 {[%emt 0:02:04]} 46. Nh5 {[%emt 0:03:04]} Rb5+ {[%emt 0:03:36]} 47. Kc4 {[%emt 0:01:04]} Kd6 {[%emt 0:01:27]} 48. Nf6 {[%emt 0:01:11]} Ke6 {[%emt 0:00:41]} 49. Ne8 {[%emt 0:00:21]} Rb7 {[%emt 0:00:35]} 50. Kc5 {[%emt 0:02:00]} Re7 {[%emt 0:00:46]} 51. Nd6 {[%emt 0:00:19]} Rc7+ {[%emt 0:00:11]} 52. Kb6 {[%emt 0:00:12]} Kxd6 {[%emt 0:00:04]} 53. Kxa6 {[%emt 0:00:10]} Kc6 {[%emt 0:00:20]} 54. b4 {[%emt 0:00:09]} Rb7 {[%emt 0:00:04]} 0-1

[Event "Niedersachsen-ch Meister 2024"]
[Site "Verden Aller"]
[Date "2024.01.05"]
[Round "3.7"]
[White "von Mettenheim, Johannes"]
[Black "Hans, Julian"]
[Result "1-0"]
[ECO "D17"]
[WhiteElo "2284"]
[BlackElo "1925"]
[Annotator "RC"]
[PlyCount "91"]
[EventDate "2024.01.01"]
[EventType "swiss"]
[EventCountry "GER"]
[SourceTitle "playchess.com"]
[Source "ChessBase"]
[SourceQuality "1"]
[TimeControl "40/5400+30:1800+30"]

1. d4 {[%emt 0:00:02]} d5 {[%emt 0:00:15]} 2. c4 {[%emt 0:00:06]} c6 {[%emt 0:00:32]} 3. Nc3 {[%emt 0:00:07]} Nf6 {[%emt 0:00:31]} 4. Nf3 {[%emt 0:00:06]} dxc4 {[%emt 0:00:28]} 5. a4 {[%emt 0:00:06]} Bf5 {[%emt 0:00:42]} 6. Ne5 {[%emt 0:00:06]} Nbd7 {[%emt 0:00:40]} 7. Nxc4 {[%emt 0:00:08]} Nb6 {[%emt 0:00:40]} 8. Ne5 {[%emt 0:00:06]} a5 {[%emt 0:00:54]} 9. h4 {[%emt 0:00:11]} e6 {[%emt 0:02:36]} 10. f3 {[%emt 0:01:08]} h6 {[%emt 0:12:44]} 11. e4 {[%emt 0:13:20]} Bh7 {[%emt 0:02:29]} 12. Be3 {[%emt 0:00:26]} Nfd7 {[%emt 0:05:25]} 13. Qb3 {[%emt 0:04:30]} Bb4 {[%emt 0:06:29]} 14. Nd3 {[%emt 0:00:56]} Qe7 {[%emt 0:01:05]} 15. Kf2 {[%emt 0:07:13]} O-O {[%emt 0:11:45]} 16. g3 {[%emt 0:01:56]} Rac8 {[%emt 0:03:28]} 17. Kg2 {[%emt 0:12:18]} c5 {[%emt 0:04:45]} 18. Nxb4 {[%emt 0:01:21]} cxd4 {[%emt 0:05:30]} 19. Bxd4 {[%emt 0:10:51]} Qxb4 {[%emt 0:00:39]} 20. Qxb4 {[%emt 0:00:37]} axb4 {[%emt 0:00:06]} 21. Nd1 {[%emt 0:17:11]} Rc2+ {[%emt 0:01:20]} 22. Kh3 {[%emt 0:05:46]} e5 {[%emt 0:01:59]} 23. Be3 {[%emt 0:01:32]} Nc4 {[%emt 0:04:32]} 24. Bc1 {[%emt 0:00:59]} Nc5 {[%emt 0:02:09]} 25. Ne3 {[%emt 0:05:24]} Nxe3 {[%emt 0:00:51]} 26. Bxe3 {[%emt 0:00:05]} f5 {[%emt 0:01:43]} 27. Rh2 {[%emt 0:01:51]} Rxh2+ {[%emt 0:04:02]} 28. Kxh2 {[%emt 0:00:05]} Nd7 {[%emt 0:09:02]} 29. Rd1 {[%emt 0:00:47]} Nf6 {[%emt 0:00:14]} 30. exf5 {[%emt 0:00:53]} Bxf5 {[%emt 0:00:28]} 31. Bc5 {[%emt 0:00:19]} Rc8 {[%emt 0:02:14]} 32. Bxb4 {[%emt 0:00:33]} e4 {[%emt 0:03:45]} 33. fxe4 {[%emt 0:03:10]} Ng4+ {[%emt 0:04:50]} 34. Kg1 {[%emt 0:00:23]} Bxe4 {[%emt 0:02:58]} 35. Rd4 {[%emt 0:00:19]} Bf5 {[%emt 0:00:59]} 36. Bc3 {[%emt 0:02:00]} Re8 {[%emt 0:01:17]} 37. Rf4 {[%emt 0:04:13]} Ne3 {[%emt 0:03:00]} 38. Bb5 {[%emt 0:02:53]} Rd8 {[%emt 0:00:16]} 39. Bd4 {[%emt 0:02:42]} Nc2 {[%emt 0:01:43]} 40. Bc3 {[%emt 0:01:55]} Ne3 {[%emt 0:00:42]} 41. Rf3 {[%emt 0:06:11]} Rd1+ {[%emt 0:06:41]} 42. Kf2 {[%emt 0:00:13]} Ng4+ {[%emt 0:00:41]} 43. Ke2 {[%emt 0:00:10]} Bc2 {[%emt 0:00:49]} 44. Bc4+ {[%emt 0:01:43]} Kh8 {[%emt 0:00:54]} 45. Rf8+ {[%emt 0:00:44]} Kh7 {[%emt 0:00:08]} 46. Rf7 {[%emt 0:00:06]} 1-0

[Event "Niedersachsen-ch Meister 2024"]
[Site "Verden Aller"]
[Date "2024.01.05"]
[Round "3.8"]
[White "Gentemann, Moritz"]
[Black "Bundan, Edward"]
[Result "*"]
[ECO "A10"]
[WhiteElo "2239"]
[BlackElo "1706"]
[Annotator "RC"]
[PlyCount "33"]
[EventDate "2024.01.01"]
[EventType "swiss"]
[EventCountry "GER"]
[SourceTitle "playchess.com"]
[Source "ChessBase"]
[SourceQuality "1"]
[TimeControl "40/5400+30:1800+30"]

1. c4 {[%emt 0:00:41]} f5 {[%emt 0:12:32]} 2. Nc3 {[%emt 0:00:42]} Nf6 {[%emt 0:00:43]} 3. g3 {[%emt 0:00:19]} e6 {[%emt 0:00:13]} 4. Bg2 {[%emt 0:00:17]} Be7 {[%emt 0:00:43]} 5. d3 {[%emt 0:10:09]} O-O {[%emt 1:18:49]} 6. e4 {[%emt 0:01:32]} d6 {[%emt 0:05:11]} 7. Nge2 {[%emt 0:00:47]} c6 {[%emt 0:02:04]} 8. O-O {[%emt 0:00:51]} e5 {[%emt 0:01:35]} 9. h3 {[%emt 0:12:21]} Be6 {[%emt 0:01:00]} 10. exf5 {[%emt 0:01:50]} Bxf5 {[%emt 0:00:39]} 11. d4 {[%emt 0:00:28]} Nbd7 {[%emt 0:01:06]} 12. Be3 {[%emt 0:03:49]} Qc7 {[%emt 0:00:30]} 13. Qd2 {[%emt 0:04:30]} Rad8 {[%emt 0:03:13]} 14. Rad1 {[%emt 0:01:49]} Nb6 {[%emt 0:02:44]} 15. b3 {[%emt 0:03:16]} d5 {[%emt 0:07:30]} 16. c5 {[%emt 0:27:54]} Nbd7 {[%emt 0:01:52]} 17. f4 {[%emt 0:03:55]} *

[Event "Niedersachsen-ch Meister 2024"]
[Site "Verden Aller"]
[Date "2024.01.05"]
[Round "3.9"]
[White "Mueer, Sebastian"]
[Black "Muecke, Leonard"]
[Result "1-0"]
[ECO "B09"]
[WhiteElo "2189"]
[BlackElo "1694"]
[Annotator "RC"]
[PlyCount "113"]
[EventDate "2024.01.01"]
[EventType "swiss"]
[EventCountry "GER"]
[SourceTitle "playchess.com"]
[Source "ChessBase"]
[SourceQuality "1"]
[TimeControl "40/5400+30:1800+30"]

1. e4 {[%emt 0:05:44]} d6 {[%emt 0:00:36]} 2. d4 {[%emt 0:00:10]} g6 {[%emt 0:00:13]} 3. Nc3 {[%emt 0:00:37]} Nf6 {[%emt 0:00:08]} 4. f4 {[%emt 0:00:25]} Bg7 {[%emt 0:00:11]} 5. Nf3 {[%emt 0:00:14]} c5 {[%emt 0:00:10]} 6. dxc5 {[%emt 0:00:07]} Qa5 {[%emt 0:00:22]} 7. Bd3 {[%emt 0:00:07]} Qxc5 {[%emt 0:01:16]} 8. Qe2 {[%emt 0:00:08]} a6 {[%emt 0:00:16]} 9. Be3 {[%emt 0:09:43]} Qa5 {[%emt 0:00:09]} 10. O-O {[%emt 0:00:26]} O-O {[%emt 0:00:13]} 11. h3 {[%emt 0:00:22]} Nc6 {[%emt 0:03:48]} 12. Qf2 {[%emt 0:04:55]} Nd7 {[%emt 0:06:54]} 13. Qh4 {[%emt 0:09:32]} b5 {[%emt 0:19:55]} 14. Ng5 {[%emt 0:17:15]} h6 {[%emt 0:04:13]} 15. Nf3 {[%emt 0:00:52]} e6 {[%emt 0:08:39]} 16. f5 {[%emt 0:00:42]} Qd8 {[%emt 0:03:00]} 17. Bg5 {[%emt 0:22:41]} hxg5 {[%emt 0:09:02]} 18. Nxg5 {[%emt 0:00:02]} Nf6 {[%emt 0:00:44]} 19. e5 {[%emt 0:01:21]} Qb6+ {[%emt 0:14:46]} 20. Kh1 {[%emt 0:00:22]} Qd4 {[%emt 0:04:51]} 21. Rf4 {[%emt 0:09:41]} Qxf4 {[%emt 0:01:56]} 22. Qxf4 {[%emt 0:00:22]} dxe5 {[%emt 0:00:30]} 23. Qh4 {[%emt 0:01:02]} exf5 {[%emt 0:00:32]} 24. Nd5 {[%emt 0:01:12]} Nh5 {[%emt 0:00:16]} 25. g4 {[%emt 0:00:55]} Be6 {[%emt 0:01:55]} 26. Nxe6 {[%emt 0:00:57]} fxe6 {[%emt 0:00:17]} 27. gxh5 {[%emt 0:02:04]} exd5 {[%emt 0:00:11]} 28. Rg1 {[%emt 0:01:14]} Rf6 {[%emt 0:02:59]} 29. h6 {[%emt 0:04:32]} Bh8 {[%emt 0:01:04]} 30. Bxf5 {[%emt 0:00:20]} Rxf5 {[%emt 0:01:39]} 31. Rxg6+ {[%emt 0:00:06]} Kh7 {[%emt 0:04:26]} 32. Rxc6 {[%emt 0:01:37]} Raf8 {[%emt 0:00:09]} 33. Rc7+ {[%emt 0:00:27]} R8f7 {[%emt 0:00:11]} 34. Rxf7+ {[%emt 0:00:46]} Rxf7 {[%emt 0:00:08]} 35. Qd8 {[%emt 0:01:19]} d4 {[%emt 0:01:00]} 36. Qd5 {[%emt 0:00:21]} Rf6 {[%emt 0:01:37]} 37. Qe4+ {[%emt 0:03:20]} Kxh6 {[%emt 0:00:48]} 38. Qh4+ {[%emt 0:00:32]} Kg7 {[%emt 0:00:07]} 39. Qh5 {[%emt 0:00:43]} Kg8 {[%emt 0:01:27]} 40. Kg2 {[%emt 0:01:11]} Bg7 {[%emt 0:00:35]} 41. Qe8+ {[%emt 0:30:57]} Kh7 {[%emt 0:32:13]} 42. Kg3 {[%emt 0:01:21]} Rh6 {[%emt 0:00:48]} 43. Kg4 {[%emt 0:00:00]} Rf6 {[%emt 0:00:00]} 44. Kg5 {[%emt 0:00:00]} Rh6 {[%emt 0:00:00]} 45. h4 {[%emt 0:00:00]} Rf6 {[%emt 0:00:00]} 46. h5 {[%emt 0:00:00]} Rf4 {[%emt 0:00:00]} 47. Qg6+ {[%emt 0:00:00]} Kh8 {[%emt 0:00:00]} 48. Qxa6 {[%emt 0:00:00]} Kh7 {[%emt 0:00:00]} 49. Qg6+ {[%emt 0:00:00]} Kh8 {[%emt 0:00:00]} 50. Qe8+ {[%emt 0:00:00]} Kh7 {[%emt 0:00:00]} 51. Qd7 {[%emt 0:00:00]} Rf1 {[%emt 0:04:10]} 52. Qxb5 {[%emt 0:00:00]} Rd1 {[%emt 0:00:11]} 53. Qe2 {[%emt 0:00:00]} Ra1 {[%emt 0:00:28]} 54. Qe4+ {[%emt 0:00:00]} Kh8 {[%emt 0:00:34]} 55. h6 {[%emt 0:00:00]} Rg1+ {[%emt 0:00:16]} 56. Kh5 {[%emt 0:00:00]} Bf6 {[%emt 0:00:44]} 57. Qa8+ {[%emt 0:00:00]} 1-0

[Event "Niedersachsen-ch Meister 2024"]
[Site "Verden Aller"]
[Date "2024.01.05"]
[Round "3.10"]
[White "Laubsch, Bernd"]
[Black "Renner, Kai"]
[Result "1-0"]
[ECO "B41"]
[WhiteElo "2259"]
[BlackElo "2153"]
[Annotator "RC"]
[PlyCount "133"]
[EventDate "2024.01.01"]
[EventType "swiss"]
[EventCountry "GER"]
[SourceTitle "playchess.com"]
[Source "ChessBase"]
[SourceQuality "1"]
[TimeControl "40/5400+30:1800+30"]

1. e4 {[%emt 0:00:02]} c5 {[%emt 0:00:18]} 2. Nf3 {[%emt 0:00:07]} e6 {[%emt 0:00:18]} 3. d4 {[%emt 0:00:10]} cxd4 {[%emt 0:00:06]} 4. Nxd4 {[%emt 0:00:10]} a6 {[%emt 0:00:15]} 5. c4 {[%emt 0:02:54]} Nf6 {[%emt 0:00:48]} 6. Bd3 {[%emt 0:00:34]} Nc6 {[%emt 0:02:32]} 7. Nxc6 {[%emt 0:02:56]} dxc6 {[%emt 0:02:06]} 8. O-O {[%emt 0:01:10]} e5 {[%emt 0:01:57]} 9. Nc3 {[%emt 0:04:32]} Be6 {[%emt 0:02:50]} 10. Kh1 {[%emt 0:02:03]} b5 {[%emt 0:09:34]} 11. Qe2 {[%emt 0:18:49]} b4 {[%emt 0:21:25]} 12. Na4 {[%emt 0:06:37]} Nd7 {[%emt 0:02:59]} 13. Be3 {[%emt 0:09:36]} Qa5 {[%emt 0:08:31]} 14. b3 {[%emt 0:06:30]} Nc5 {[%emt 0:02:28]} 15. Nb2 {[%emt 0:01:09]} Bd6 {[%emt 0:06:41]} 16. Bc2 {[%emt 0:13:57]} Qc7 {[%emt 0:03:00]} 17. f3 {[%emt 0:03:11]} O-O {[%emt 0:03:12]} 18. Qf2 {[%emt 0:00:26]} Qe7 {[%emt 0:00:18]} 19. Rfd1 {[%emt 0:02:30]} Nb7 {[%emt 0:03:29]} 20. Na4 {[%emt 0:01:22]} c5 {[%emt 0:07:33]} 21. Nb6 {[%emt 0:05:42]} Rad8 {[%emt 0:03:09]} 22. a3 {[%emt 0:03:40]} Qc7 {[%emt 0:01:43]} 23. Nd5 {[%emt 0:01:07]} Qc6 {[%emt 0:04:25]} 24. g4 {[%emt 0:02:39]} f6 {[%emt 0:03:09]} 25. Rg1 {[%emt 0:01:40]} Rd7 {[%emt 0:00:56]} 26. Qh4 {[%emt 0:02:04]} Rdf7 {[%emt 0:03:10]} 27. Rg3 {[%emt 0:01:01]} Be7 {[%emt 0:02:38]} 28. Rh3 {[%emt 0:02:16]} g6 {[%emt 0:02:00]} 29. Qf2 {[%emt 0:01:17]} a5 {[%emt 0:02:06]} 30. a4 {[%emt 0:00:29]} Nd8 {[%emt 0:00:20]} 31. Nxe7+ {[%emt 0:00:17]} Rxe7 {[%emt 0:00:06]} 32. Bxc5 {[%emt 0:00:02]} Rff7 {[%emt 0:00:22]} 33. Bxe7 {[%emt 0:00:20]} Rxe7 {[%emt 0:00:04]} 34. Rd1 {[%emt 0:00:53]} Rd7 {[%emt 0:00:06]} 35. Rd5 {[%emt 0:02:49]} Bxd5 {[%emt 0:00:12]} 36. exd5 {[%emt 0:00:01]} Qd6 {[%emt 0:00:21]} 37. Rg3 {[%emt 0:00:09]} Nb7 {[%emt 0:00:07]} 38. Qa7 {[%emt 0:01:42]} Qc5 {[%emt 0:00:42]} 39. Qxc5 {[%emt 0:01:40]} Nxc5 {[%emt 0:00:04]} 40. Kg2 {[%emt 0:00:33]} Kf8 {[%emt 0:00:26]} 41. Kf2 {[%emt 0:30:21]} Ke7 {[%emt 0:30:24]} 42. Ke3 {[%emt 0:01:18]} Kd6 {[%emt 0:00:32]} 43. Rh3 {[%emt 0:00:00]} Rg7 {[%emt 0:00:00]} 44. Rh6 {[%emt 0:00:00]} Nb7 {[%emt 0:00:00]} 45. f4 {[%emt 0:00:00]} Nd8 {[%emt 0:00:00]} 46. Rh3 {[%emt 0:00:00]} exf4+ {[%emt 0:00:00]} 47. Kxf4 {[%emt 0:00:00]} Re7 {[%emt 0:00:00]} 48. Kf3 {[%emt 0:00:00]} Nb7 {[%emt 0:00:00]} 49. Kf2 {[%emt 0:00:00]} Nc5 {[%emt 0:00:00]} 50. Rf3 {[%emt 0:00:00]} Nd7 {[%emt 0:00:00]} 51. h4 {[%emt 0:00:00]} Re5 {[%emt 0:03:13]} 52. Rh3 {[%emt 0:00:00]} Nc5 {[%emt 0:00:55]} 53. Rf3 {[%emt 0:00:00]} Nd7 {[%emt 0:00:09]} 54. Rf4 {[%emt 0:00:00]} Ke7 {[%emt 0:01:39]} 55. h5 {[%emt 0:03:13]} gxh5 {[%emt 0:01:44]} 56. Bxh7 {[%emt 0:00:01]} hxg4 {[%emt 0:00:32]} 57. Rxg4 {[%emt 0:00:06]} Rg5 {[%emt 0:00:35]} 58. Rh4 {[%emt 0:00:36]} Kd6 {[%emt 0:00:38]} 59. Bc2 {[%emt 0:00:34]} Rg7 {[%emt 0:01:03]} 60. Rh8 {[%emt 0:00:22]} Kc5 {[%emt 0:00:21]} 61. Rc8+ {[%emt 0:02:52]} Kd4 {[%emt 0:00:21]} 62. Rc7 {[%emt 0:00:23]} f5 {[%emt 0:01:38]} 63. d6 {[%emt 0:01:46]} Kc3 {[%emt 0:01:07]} 64. c5 {[%emt 0:00:45]} Nxc5 {[%emt 0:00:30]} 65. Rxc5+ {[%emt 0:00:13]} Kb2 {[%emt 0:00:09]} 66. Bd1 {[%emt 0:01:00]} Rd7 {[%emt 0:00:28]} 67. Rc6 {[%emt 0:00:09]} 1-0

[Event "Niedersachsen-ch Meister 2024"]
[Site "Verden Aller"]
[Date "2024.01.05"]
[Round "3.11"]
[White "Aden, Tammo"]
[Black "Bargsten, Justus"]
[Result "1/2-1/2"]
[ECO "E11"]
[WhiteElo "2025"]
[BlackElo "2216"]
[Annotator "RC"]
[PlyCount "99"]
[EventDate "2024.01.01"]
[EventType "swiss"]
[EventCountry "GER"]
[SourceTitle "playchess.com"]
[Source "ChessBase"]
[SourceQuality "1"]
[TimeControl "40/5400+30:1800+30"]

1. d4 {[%emt 0:00:02]} d5 {[%emt 0:00:06]} 2. Nf3 {[%emt 0:00:04]} Nf6 {[%emt 0:00:04]} 3. c4 {[%emt 0:00:04]} e6 {[%emt 0:00:04]} 4. g3 {[%emt 0:00:02]} Bb4+ {[%emt 0:00:05]} 5. Bd2 {[%emt 0:00:04]} a5 {[%emt 0:00:05]} 6. a3 {[%emt 0:00:20]} Be7 {[%emt 0:01:18]} 7. Qc2 {[%emt 0:00:31]} O-O {[%emt 0:00:18]} 8. Bg2 {[%emt 0:00:32]} Nbd7 {[%emt 0:00:46]} 9. O-O {[%emt 0:01:48]} c6 {[%emt 0:00:05]} 10. Bf4 {[%emt 0:01:47]} a4 {[%emt 0:04:18]} 11. Nc3 {[%emt 0:15:58]} Qa5 {[%emt 0:00:34]} 12. Nd2 {[%emt 0:07:26]} Qa6 {[%emt 0:09:19]} 13. cxd5 {[%emt 0:14:45]} exd5 {[%emt 0:00:17]} 14. e4 {[%emt 0:00:31]} Nb6 {[%emt 0:11:30]} 15. e5 {[%emt 0:11:00]} Nh5 {[%emt 0:01:06]} 16. Be3 {[%emt 0:00:28]} g6 {[%emt 0:00:46]} 17. Bf3 {[%emt 0:13:24]} Bf5 {[%emt 0:00:45]} 18. Qd1 {[%emt 0:00:25]} Ng7 {[%emt 0:00:14]} 19. Be2 {[%emt 0:06:50]} Bd3 {[%emt 0:00:15]} 20. Bh6 {[%emt 0:02:00]} Rfe8 {[%emt 0:00:48]} 21. Nf3 {[%emt 0:03:31]} Bxe2 {[%emt 0:01:06]} 22. Nxe2 {[%emt 0:00:01]} Nc4 {[%emt 0:02:19]} 23. Rb1 {[%emt 0:02:06]} Ne6 {[%emt 0:02:30]} 24. Nf4 {[%emt 0:01:12]} Bf8 {[%emt 0:04:29]} 25. Nxe6 {[%emt 0:03:26]} Rxe6 {[%emt 0:01:36]} 26. Bxf8 {[%emt 0:01:05]} Rxf8 {[%emt 0:00:14]} 27. Ng5 {[%emt 0:02:47]} Re7 {[%emt 0:00:28]} 28. h4 {[%emt 0:00:51]} Qa5 {[%emt 0:03:15]} 29. Re1 {[%emt 0:02:38]} Qd2 {[%emt 0:03:18]} 30. Qg4 {[%emt 0:02:32]} f5 {[%emt 0:04:13]} 31. Qf4 {[%emt 0:01:36]} Qxf4 {[%emt 0:01:03]} 32. gxf4 {[%emt 0:00:02]} b5 {[%emt 0:01:36]} 33. Nf3 {[%emt 0:03:25]} Rb8 {[%emt 0:00:21]} 34. h5 {[%emt 0:02:17]} b4 {[%emt 0:01:33]} 35. hxg6 {[%emt 0:00:55]} hxg6 {[%emt 0:00:02]} 36. Kg2 {[%emt 0:00:25]} bxa3 {[%emt 0:03:28]} 37. bxa3 {[%emt 0:00:06]} Rb3 {[%emt 0:00:25]} 38. Ra1 {[%emt 0:01:52]} Ra7 {[%emt 0:02:14]} 39. Rec1 {[%emt 0:00:40]} Rab7 {[%emt 0:04:09]} 40. Rc2 {[%emt 0:00:29]} Rb2 {[%emt 0:04:19]} 41. Rxb2 {[%emt 0:02:29]} Rxb2 {[%emt 0:01:20]} 42. Re1 {[%emt 0:07:45]} Rb7 {[%emt 1:04:49]} 43. Ng5 {[%emt 0:03:51]} Nxa3 {[%emt 0:00:00]} 44. Ra1 {[%emt 0:00:27]} Rb3 {[%emt 0:00:00]} 45. e6 {[%emt 0:04:34]} Kf8 {[%emt 0:00:00]} 46. Rh1 {[%emt 0:00:49]} Nc4 {[%emt 0:00:00]} 47. Rh8+ {[%emt 0:00:28]} Ke7 {[%emt 0:00:00]} 48. Rh7+ {[%emt 0:00:10]} Ke8 {[%emt 0:00:00]} 49. Rh8+ {[%emt 0:04:59]} Ke7 {[%emt 0:00:00]} 50. Rh7+ {[%emt 0:00:05]} 1/2-1/2

[Event "Niedersachsen-ch Meister 2024"]
[Site "Verden Aller"]
[Date "2024.01.05"]
[Round "3.12"]
[White "Oest, Thorsten"]
[Black "Sauer, Tim"]
[Result "0-1"]
[ECO "B25"]
[WhiteElo "1981"]
[BlackElo "2126"]
[Annotator "RC"]
[PlyCount "104"]
[EventDate "2024.01.01"]
[EventType "swiss"]
[EventCountry "GER"]
[SourceTitle "playchess.com"]
[Source "ChessBase"]
[SourceQuality "1"]
[TimeControl "40/5400+30:1800+30"]

1. e4 {[%emt 0:00:03]} c5 {[%emt 0:00:06]} 2. Nc3 {[%emt 0:00:21]} Nc6 {[%emt 0:00:09]} 3. Nf3 {[%emt 0:00:31]} g6 {[%emt 0:00:11]} 4. g3 {[%emt 0:00:54]} Bg7 {[%emt 0:00:09]} 5. Bg2 {[%emt 0:00:06]} Nf6 {[%emt 0:02:03]} 6. d3 {[%emt 0:00:53]} O-O {[%emt 0:00:50]} 7. Be3 {[%emt 0:04:25]} d6 {[%emt 0:02:47]} 8. O-O {[%emt 0:02:32]} Rb8 {[%emt 0:02:17]} 9. a4 {[%emt 0:01:03]} a6 {[%emt 0:06:15]} 10. h3 {[%emt 0:01:21]} Qc7 {[%emt 0:06:26]} 11. d4 {[%emt 0:08:32]} cxd4 {[%emt 0:04:41]} 12. Nxd4 {[%emt 0:01:04]} Na5 {[%emt 0:03:49]} 13. Qe2 {[%emt 0:06:22]} e5 {[%emt 0:25:16]} 14. Nf3 {[%emt 0:04:01]} h6 {[%emt 0:06:47]} 15. Rfd1 {[%emt 0:12:51]} Be6 {[%emt 0:01:58]} 16. Nd2 {[%emt 0:07:48]} Rfc8 {[%emt 0:02:47]} 17. Rac1 {[%emt 0:06:37]} Kh7 {[%emt 0:19:59]} 18. Kh2 {[%emt 0:05:47]} Bc4 {[%emt 0:01:47]} 19. Qe1 {[%emt 0:01:59]} Be6 {[%emt 0:03:16]} 20. Qe2 {[%emt 0:01:00]} Bd7 {[%emt 0:07:03]} 21. Ba7 {[%emt 0:04:53]} Ra8 {[%emt 0:00:36]} 22. Qe3 {[%emt 0:00:39]} Nc6 {[%emt 0:01:40]} 23. Bb6 {[%emt 0:00:16]} Qb8 {[%emt 0:00:03]} 24. a5 {[%emt 0:01:22]} Nb4 {[%emt 0:00:50]} 25. b3 {[%emt 0:02:22]} Be6 {[%emt 0:00:23]} 26. Ndb1 {[%emt 0:06:01]} Nd7 {[%emt 0:00:40]} 27. Rd2 {[%emt 0:02:15]} Nxb6 {[%emt 0:00:36]} 28. Qxb6 {[%emt 0:01:18]} Nc6 {[%emt 0:00:04]} 29. Nd5 {[%emt 0:01:56]} Nd4 {[%emt 0:00:46]} 30. Nbc3 {[%emt 0:02:14]} Rc5 {[%emt 0:00:40]} 31. Na4 {[%emt 0:07:10]} Rb5 {[%emt 0:00:21]} 32. Qc7 {[%emt 0:00:22]} Bxd5 {[%emt 0:00:03]} 33. Qxb8 {[%emt 0:00:14]} Rxb8 {[%emt 0:00:05]} 34. exd5 {[%emt 0:00:10]} Rxa5 {[%emt 0:00:30]} 35. Nb6 {[%emt 0:04:58]} Ra2 {[%emt 0:00:17]} 36. Nc4 {[%emt 0:01:05]} b5 {[%emt 0:00:59]} 37. c3 {[%emt 0:00:30]} Nxb3 {[%emt 0:00:42]} 38. Rxa2 {[%emt 0:01:16]} Nxc1 {[%emt 0:00:08]} 39. Rc2 {[%emt 0:00:27]} bxc4 {[%emt 0:00:11]} 40. Rxc1 {[%emt 0:00:06]} Rb5 {[%emt 0:01:33]} 41. Bf1 {[%emt 0:32:25]} Rc5 {[%emt 0:14:21]} 42. Ra1 {[%emt 0:00:00]} a5 {[%emt 0:01:57]} 43. g4 {[%emt 0:00:00]} e4 {[%emt 0:15:59]} 44. Ra3 {[%emt 0:00:00]} f5 {[%emt 0:00:00]} 45. Kg2 {[%emt 0:00:00]} Be5 {[%emt 0:00:00]} 46. gxf5 {[%emt 0:00:00]} gxf5 {[%emt 0:00:00]} 47. h4 {[%emt 0:00:00]} Kg6 {[%emt 0:00:00]} 48. f3 {[%emt 0:00:00]} Rxd5 {[%emt 0:00:00]} 49. fxe4 {[%emt 0:00:34]} fxe4 {[%emt 0:00:00]} 50. Bxc4 {[%emt 0:00:50]} Rc5 {[%emt 0:00:00]} 51. Ba6 {[%emt 0:02:18]} Bxc3 {[%emt 0:00:00]} 52. Bb7 {[%emt 0:00:14]} Kf5 {[%emt 0:00:00]} 0-1

[Event "Niedersachsen-ch Meister 2024"]
[Site "Verden Aller"]
[Date "2024.01.05"]
[Round "3.13"]
[White "Evering, Soeren"]
[Black "Heinemann, Ernst"]
[Result "*"]
[ECO "B12"]
[WhiteElo "2034"]
[BlackElo "2033"]
[Annotator "RC"]
[PlyCount "35"]
[EventDate "2024.01.01"]
[EventType "swiss"]
[EventCountry "GER"]
[SourceTitle "playchess.com"]
[Source "ChessBase"]
[SourceQuality "1"]
[TimeControl "40/5400+30:1800+30"]

1. e4 {[%emt 0:00:04]} c6 {[%emt 0:00:18]} 2. d4 {[%emt 0:00:13]} d5 {[%emt 0:00:15]} 3. e5 {[%emt 0:00:08]} c5 {[%emt 0:00:37]} 4. Nf3 {[%emt 0:01:03]} Nc6 {[%emt 0:02:22]} 5. dxc5 {[%emt 0:00:13]} Bg4 {[%emt 0:01:35]} 6. c3 {[%emt 0:01:02]} e6 {[%emt 0:02:02]} 7. Be3 {[%emt 0:00:51]} Nge7 {[%emt 0:03:38]} 8. Nbd2 {[%emt 0:02:08]} Ng6 {[%emt 0:08:26]} 9. Qa4 {[%emt 0:15:56]} Bxf3 {[%emt 0:01:21]} 10. Nxf3 {[%emt 0:04:35]} Be7 {[%emt 0:00:25]} 11. Bb5 {[%emt 0:10:44]} O-O {[%emt 1:15:01]} 12. Bxc6 {[%emt 0:01:06]} bxc6 {[%emt 0:00:04]} 13. O-O {[%emt 0:05:45]} Qc7 {[%emt 0:01:56]} 14. Bd4 {[%emt 0:01:26]} Qb7 {[%emt 0:07:27]} 15. Rfb1 {[%emt 0:09:06]} f6 {[%emt 0:10:27]} 16. b4 {[%emt 0:02:44]} a6 {[%emt 0:02:19]} 17. Re1 {[%emt 0:04:36]} f5 {[%emt 0:04:47]} 18. Be3 {[%emt 0:04:02]} *